[Event "Late-Titled-Tuesday-Blitz-November-28-2023"]
[Site "Chess.com"]
[Date "2023.11.28"]
[Round "5"]
[White "TimGrutter03"]
[Black "Dr_crypt"]
[Result "1/2-1/2"]
[WhiteElo "2540"]
[BlackElo "2388"]
[TimeControl "180+1"]
[EndTime "14:57:14 PST"]
[Termination "Game drawn by 50-move rule"]

1. d4 {[%clk 0:03:00.2]} 1... Nf6 {[%clk 0:02:58]} 2. Nc3 {[%clk 0:03:00.7]}
2... d5 {[%clk 0:02:56.2]} 3. Bf4 {[%clk 0:03:01.2]} 3... e6 {[%clk 0:02:54.7]}
4. Nb5 {[%clk 0:02:59.1]} 4... Bb4+ {[%clk 0:02:54.4]} 5. c3 {[%clk 0:02:58.4]}
5... Ba5 {[%clk 0:02:54.5]} 6. a4 {[%clk 0:02:58.7]} 6... a6 {[%clk 0:02:51.3]}
7. Na3 {[%clk 0:02:58.9]} 7... c6 {[%clk 0:02:36.4]} 8. e3 {[%clk 0:02:57.5]}
8... O-O {[%clk 0:02:32.9]} 9. Nf3 {[%clk 0:02:56.9]} 9... b5 {[%clk 0:02:31.5]}
10. Nc2 {[%clk 0:02:51.8]} 10... Bc7 {[%clk 0:02:26.9]} 11. Ne5 {[%clk
0:02:48.5]} 11... Nfd7 {[%clk 0:02:23.8]} 12. axb5 {[%clk 0:02:40.8]} 12... Nxe5
{[%clk 0:02:22.4]} 13. dxe5 {[%clk 0:02:38.8]} 13... cxb5 {[%clk 0:02:22.4]} 14.
Bxb5 {[%clk 0:02:37]} 14... Bb7 {[%clk 0:02:17.3]} 15. Bd3 {[%clk 0:02:36.1]}
15... Nd7 {[%clk 0:02:13.5]} 16. O-O {[%clk 0:02:33.6]} 16... g6 {[%clk
0:02:09.7]} 17. Bh6 {[%clk 0:02:25.9]} 17... Re8 {[%clk 0:02:09.6]} 18. f4
{[%clk 0:02:25.6]} 18... a5 {[%clk 0:01:44.1]} 19. Nd4 {[%clk 0:02:23]} 19...
Nc5 {[%clk 0:01:38.9]} 20. Bg5 {[%clk 0:02:15.3]} 20... Qb8 {[%clk 0:01:33.4]}
21. Bb5 {[%clk 0:02:12.2]} 21... Rc8 {[%clk 0:01:32.9]} 22. Rf3 {[%clk 0:02:08]}
22... Ne4 {[%clk 0:01:31.8]} 23. Be7 {[%clk 0:01:56.8]} 23... Bd8 {[%clk
0:01:24.2]} 24. Ba3 {[%clk 0:01:49.1]} 24... Ba6 {[%clk 0:01:12.4]} 25. Bxa6
{[%clk 0:01:46.1]} 25... Rxa6 {[%clk 0:01:13.3]} 26. Qa4 {[%clk 0:01:27.8]}
26... Bb6 {[%clk 0:01:03.8]} 27. Kh1 {[%clk 0:01:16.1]} 27... Qb7 {[%clk
0:00:58.3]} 28. Qb5 {[%clk 0:01:05.7]} 28... Ra7 {[%clk 0:00:55.6]} 29. Qe2
{[%clk 0:00:59.9]} 29... a4 {[%clk 0:00:52.5]} 30. Nb5 {[%clk 0:00:50.5]} 30...
Ra5 {[%clk 0:00:45.2]} 31. Nd6 {[%clk 0:00:49.9]} 31... Nxd6 {[%clk 0:00:45.5]}
32. exd6 {[%clk 0:00:47.6]} 32... Bc5 {[%clk 0:00:45.3]} 33. Rh3 {[%clk
0:00:40.3]} 33... Bxa3 {[%clk 0:00:44.4]} 34. Rxa3 {[%clk 0:00:41.2]} 34... Qd7
{[%clk 0:00:44.4]} 35. Qf2 {[%clk 0:00:38.3]} 35... Qxd6 {[%clk 0:00:31.8]} 36.
Qh4 {[%clk 0:00:37.6]} 36... h5 {[%clk 0:00:29.9]} 37. Qg5 {[%clk 0:00:31.7]}
37... Qd8 {[%clk 0:00:22.5]} 38. Qg3 {[%clk 0:00:31.3]} 38... d4 {[%clk
0:00:21.7]} 39. exd4 {[%clk 0:00:26.6]} 39... Qxd4 {[%clk 0:00:22.1]} 40. Qd3
{[%clk 0:00:18.8]} 40... Qxf4 {[%clk 0:00:20.1]} 41. Rf3 {[%clk 0:00:16]} 41...
Qc1+ {[%clk 0:00:20.2]} 42. Rf1 {[%clk 0:00:14.4]} 42... Qxb2 {[%clk 0:00:20.6]}
43. Raa1 {[%clk 0:00:10.3]} 43... Rd5 {[%clk 0:00:18.7]} 44. Qa6 {[%clk
0:00:07.6]} 44... Rxc3 {[%clk 0:00:13.5]} 45. Qxa4 {[%clk 0:00:05.3]} 45... Rc8
{[%clk 0:00:11]} 46. Qa7 {[%clk 0:00:04.3]} 46... Rf8 {[%clk 0:00:08.4]} 47.
Rab1 {[%clk 0:00:02.9]} 47... Qd4 {[%clk 0:00:08.7]} 48. Qc7 {[%clk 0:00:01.6]}
48... Rf5 {[%clk 0:00:08.1]} 49. Qb7 {[%clk 0:00:01.4]} 49... Rxf1+ {[%clk
0:00:08.1]} 50. Rxf1 {[%clk 0:00:02.3]} 50... Qd5 {[%clk 0:00:08.8]} 51. Qb1
{[%clk 0:00:02.5]} 51... e5 {[%clk 0:00:09.1]} 52. h3 {[%clk 0:00:02.8]} 52...
Rd8 {[%clk 0:00:07.9]} 53. Qe1 {[%clk 0:00:03.4]} 53... e4 {[%clk 0:00:08.3]}
54. Qe3 {[%clk 0:00:03.4]} 54... Qe6 {[%clk 0:00:08.1]} 55. Rf4 {[%clk
0:00:02.5]} 55... Rd3 {[%clk 0:00:08.3]} 56. Qxe4 {[%clk 0:00:02.3]} 56... Qxe4
{[%clk 0:00:08.5]} 57. Rxe4 {[%clk 0:00:03.2]} 57... Kg7 {[%clk 0:00:09.3]} 58.
Kh2 {[%clk 0:00:03.7]} 58... g5 {[%clk 0:00:09.3]} 59. Ra4 {[%clk 0:00:04.1]}
59... h4 {[%clk 0:00:09.9]} 60. Ra5 {[%clk 0:00:04.2]} 60... Kg6 {[%clk
0:00:10.1]} 61. Kg1 {[%clk 0:00:04.6]} 61... Rd2 {[%clk 0:00:10.6]} 62. Kf1
{[%clk 0:00:02.3]} 62... Rb2 {[%clk 0:00:10.6]} 63. Ra4 {[%clk 0:00:02.5]} 63...
f6 {[%clk 0:00:11.2]} 64. Rc4 {[%clk 0:00:02.4]} 64... f5 {[%clk 0:00:11.2]} 65.
Ra4 {[%clk 0:00:02.9]} 65... Kh5 {[%clk 0:00:11]} 66. Ra5 {[%clk 0:00:02.8]}
66... Kg6 {[%clk 0:00:11.2]} 67. Ra4 {[%clk 0:00:03.2]} 67... Rb5 {[%clk
0:00:11.2]} 68. Ra6+ {[%clk 0:00:03]} 68... Kh5 {[%clk 0:00:11.2]} 69. Ra4
{[%clk 0:00:03.9]} 69... Re5 {[%clk 0:00:11.2]} 70. Rb4 {[%clk 0:00:03.5]} 70...
Re4 {[%clk 0:00:11.8]} 71. Rb5 {[%clk 0:00:03.3]} 71... g4 {[%clk 0:00:11.3]}
72. Rxf5+ {[%clk 0:00:02.4]} 72... Kg6 {[%clk 0:00:11.9]} 73. hxg4 {[%clk
0:00:03.1]} 73... Rxg4 {[%clk 0:00:12.4]} 74. Rf3 {[%clk 0:00:03.6]} 74... Kg5
{[%clk 0:00:12.9]} 75. Kg1 {[%clk 0:00:03.6]} 75... Rf4 {[%clk 0:00:12.6]} 76.
Ra3 {[%clk 0:00:02.9]} 76... Kg4 {[%clk 0:00:13.1]} 77. Kh2 {[%clk 0:00:03.1]}
77... Rb4 {[%clk 0:00:13.4]} 78. Ra5 {[%clk 0:00:03.2]} 78... Rd4 {[%clk
0:00:13.9]} 79. Ra8 {[%clk 0:00:03.8]} 79... Rf4 {[%clk 0:00:13.8]} 80. Rg8+
{[%clk 0:00:04.4]} 80... Kh5 {[%clk 0:00:14.1]} 81. Kh3 {[%clk 0:00:04.4]} 81...
Rb4 {[%clk 0:00:13.8]} 82. Rh8+ {[%clk 0:00:04.5]} 82... Kg5 {[%clk 0:00:14.3]}
83. Rd8 {[%clk 0:00:05]} 83... Rb3+ {[%clk 0:00:14.4]} 84. Kh2 {[%clk
0:00:05.5]} 84... Kg4 {[%clk 0:00:14.9]} 85. Rd4+ {[%clk 0:00:05.1]} 85... Kg5
{[%clk 0:00:15.3]} 86. Rd5+ {[%clk 0:00:05.4]} 86... Kg4 {[%clk 0:00:15.8]} 87.
Ra5 {[%clk 0:00:05.7]} 87... Rc3 {[%clk 0:00:16.3]} 88. Ra1 {[%clk 0:00:05]}
88... Kg5 {[%clk 0:00:16]} 89. Ra4 {[%clk 0:00:04.6]} 89... Kh5 {[%clk
0:00:16.4]} 90. Re4 {[%clk 0:00:04.9]} 90... Kg5 {[%clk 0:00:17.1]} 91. Kg1
{[%clk 0:00:05.1]} 91... Kh5 {[%clk 0:00:14.3]} 92. Kf2 {[%clk 0:00:05]} 92...
Rc2+ {[%clk 0:00:14.9]} 93. Kf3 {[%clk 0:00:05.2]} 93... Rc3+ {[%clk 0:00:15.4]}
94. Kf4 {[%clk 0:00:05.4]} 94... Rg3 {[%clk 0:00:15.1]} 95. Re5+ {[%clk
0:00:04.5]} 95... Kg6 {[%clk 0:00:15.6]} 96. Re2 {[%clk 0:00:04.4]} 96... Kh5
{[%clk 0:00:14.6]} 97. Ra2 {[%clk 0:00:04.4]} 97... Kg6 {[%clk 0:00:15]} 98.
Ra6+ {[%clk 0:00:04.1]} 98... Kg7 {[%clk 0:00:15.5]} 99. Ra2 {[%clk 0:00:02.8]}
99... Kg6 {[%clk 0:00:16.4]} 100. Rb2 {[%clk 0:00:03.2]} 100... Kg7 {[%clk
0:00:16.7]} 101. Kf5 {[%clk 0:00:02.2]} 101... Kh6 {[%clk 0:00:16.3]} 102. Rb6+
{[%clk 0:00:01.6]} 102... Kg7 {[%clk 0:00:16.6]} 103. Rb2 {[%clk 0:00:01.9]}
103... Kh6 {[%clk 0:00:16.4]} 104. Rf2 {[%clk 0:00:02.2]} 104... Kg7 {[%clk
0:00:16.6]} 105. Kf4 {[%clk 0:00:02.6]} 105... Kh6 {[%clk 0:00:16.7]} 106. Ke4
{[%clk 0:00:02.6]} 106... Kg6 {[%clk 0:00:17.1]} 107. Kf4 {[%clk 0:00:02]}
107... Kh6 {[%clk 0:00:17.5]} 108. Ke4 {[%clk 0:00:02.5]} 108... Kg6 {[%clk
0:00:18.1]} 109. Kf4 {[%clk 0:00:02.2]} 109... Kh5 {[%clk 0:00:18.6]} 110. Ke4
{[%clk 0:00:02]} 110... Rg4+ {[%clk 0:00:19.1]} 111. Kf3 {[%clk 0:00:02.1]}
111... Rg3+ {[%clk 0:00:19.5]} 112. Ke2 {[%clk 0:00:02.2]} 112... Ra3 {[%clk
0:00:20.4]} 113. Rf5+ {[%clk 0:00:01.4]} 113... Kg4 {[%clk 0:00:20.7]} 114. Rc5
{[%clk 0:00:02.2]} 114... Ra2+ {[%clk 0:00:21.4]} 115. Kf1 {[%clk 0:00:02.7]}
115... Kg3 {[%clk 0:00:22]} 116. Rc3+ {[%clk 0:00:02.4]} 116... Kg4 {[%clk
0:00:22.3]} 117. Rc4+ {[%clk 0:00:02.7]} 117... Kg5 {[%clk 0:00:23]} 118. Kg1
{[%clk 0:00:02.5]} 118... Rb2 {[%clk 0:00:22.6]} 119. Rc3 {[%clk 0:00:02.4]}
119... Rd2 {[%clk 0:00:22.9]} 120. Kh2 {[%clk 0:00:02.7]} 120... Ra2 {[%clk
0:00:23.1]} 121. Kh3 {[%clk 0:00:02.6]} 121... Ra4 {[%clk 0:00:22.9]} 122. Rc5+
{[%clk 0:00:02.6]} 122... Kg6 {[%clk 0:00:23.3]} 123. Rb5 {[%clk 0:00:03]}
123... Kh6 {[%clk 0:00:23.5]} 1/2-1/2

[Event "Late-Titled-Tuesday-Blitz-November-28-2023"]
[Site "Chess.com"]
[Date "2023.11.28"]
[Round "6"]
[White "TreinadorBR"]
[Black "Yushko_Olga"]
[Result "1-0"]
[WhiteElo "2354"]
[BlackElo "2125"]
[TimeControl "180+1"]
[EndTime "14:58:43 PST"]
[Termination "TreinadorBR won by checkmate"]

1. e4 {[%clk 0:03:00.9]} 1... e6 {[%clk 0:02:59.4]} 2. d4 {[%clk 0:03:00.6]}
2... d5 {[%clk 0:03:00.1]} 3. Nd2 {[%clk 0:03:01.2]} 3... Nf6 {[%clk 0:03:00.3]}
4. e5 {[%clk 0:03:01.5]} 4... Nfd7 {[%clk 0:03:00.9]} 5. Bd3 {[%clk 0:03:02.1]}
5... c5 {[%clk 0:03:01.4]} 6. c3 {[%clk 0:03:02.9]} 6... Nc6 {[%clk 0:03:01.5]}
7. Ne2 {[%clk 0:03:03.5]} 7... Qb6 {[%clk 0:03:01.5]} 8. Nf3 {[%clk 0:03:03.4]}
8... cxd4 {[%clk 0:03:01.6]} 9. cxd4 {[%clk 0:03:04.3]} 9... Bb4+ {[%clk
0:03:01.7]} 10. Kf1 {[%clk 0:03:04.9]} 10... O-O {[%clk 0:03:01.7]} 11. Bxh7+
{[%clk 0:03:04.7]} 11... Kxh7 {[%clk 0:02:59.9]} 12. Ng5+ {[%clk 0:03:03.6]}
12... Kg8 {[%clk 0:02:52.1]} 13. Qd3 {[%clk 0:03:03.8]} 13... g6 {[%clk
0:02:45.1]} 14. Qh3 {[%clk 0:03:04]} 14... Re8 {[%clk 0:02:27.2]} 15. Qh7+
{[%clk 0:03:02.2]} 15... Kf8 {[%clk 0:02:27]} 16. Qxf7# {[%clk 0:03:03.1]} 1-0

[Event "Late-Titled-Tuesday-Blitz-November-28-2023"]
[Site "Chess.com"]
[Date "2023.11.28"]
[Round "6"]
[White "SnekkerAndersen"]
[Black "liwadas82"]
[Result "0-1"]
[WhiteElo "2540"]
[BlackElo "2382"]
[TimeControl "180+1"]
[EndTime "14:59:57 PST"]
[Termination "liwadas82 won by checkmate"]

1. a3 {[%clk 0:03:00.9]} 1... e5 {[%clk 0:02:58.8]} 2. h3 {[%clk 0:03:01.8]}
2... d5 {[%clk 0:02:58]} 3. d3 {[%clk 0:03:02.7]} 3... Nf6 {[%clk 0:02:57.1]} 4.
e3 {[%clk 0:03:03.6]} 4... Bd6 {[%clk 0:02:53.6]} 5. Nc3 {[%clk 0:03:04.1]} 5...
c6 {[%clk 0:02:53]} 6. Bd2 {[%clk 0:03:04.7]} 6... O-O {[%clk 0:02:52.2]} 7. e4
{[%clk 0:03:05.3]} 7... d4 {[%clk 0:02:51]} 8. Nce2 {[%clk 0:03:04.9]} 8... c5
{[%clk 0:02:51.5]} 9. Ng3 {[%clk 0:03:02.4]} 9... Nc6 {[%clk 0:02:48.6]} 10. Nf3
{[%clk 0:03:01.4]} 10... Ne8 {[%clk 0:02:37.5]} 11. Nf5 {[%clk 0:02:59.2]} 11...
Bxf5 {[%clk 0:02:25.8]} 12. exf5 {[%clk 0:03:00.1]} 12... Ne7 {[%clk 0:02:26.1]}
13. g4 {[%clk 0:02:58.1]} 13... Nd5 {[%clk 0:02:20.5]} 14. Bg2 {[%clk
0:02:57.7]} 14... Nf4 {[%clk 0:02:16]} 15. Bxf4 {[%clk 0:02:57.2]} 15... exf4
{[%clk 0:02:16.9]} 16. O-O {[%clk 0:02:57.5]} 16... h5 {[%clk 0:02:12.2]} 17.
Nd2 {[%clk 0:02:54.9]} 17... hxg4 {[%clk 0:02:10.7]} 18. hxg4 {[%clk 0:02:55]}
18... Qh4 {[%clk 0:02:08.2]} 19. Ne4 {[%clk 0:02:48.2]} 19... f3 {[%clk
0:01:54.6]} 20. Nxd6 {[%clk 0:02:35.8]} 20... fxg2 {[%clk 0:01:54.7]} 21. Re1
{[%clk 0:02:31.9]} 21... Qh1# {[%clk 0:01:52.4]} 0-1

[Event "Late-Titled-Tuesday-Blitz-November-28-2023"]
[Site "Chess.com"]
[Date "2023.11.28"]
[Round "6"]
[White "vladoboch"]
[Black "Gyulamiryan-koryun"]
[Result "0-1"]
[WhiteElo "2406"]
[BlackElo "1975"]
[TimeControl "180+1"]
[EndTime "15:00:38 PST"]
[Termination "Gyulamiryan-koryun won by checkmate"]

1. e4 {[%clk 0:02:58.7]} 1... e5 {[%clk 0:02:50.9]} 2. Nf3 {[%clk 0:02:50]} 2...
Nc6 {[%clk 0:02:50.2]} 3. Bc4 {[%clk 0:02:47.5]} 3... Nf6 {[%clk 0:02:49.3]} 4.
d3 {[%clk 0:02:47.3]} 4... Be7 {[%clk 0:02:48.2]} 5. O-O {[%clk 0:02:47.1]} 5...
O-O {[%clk 0:02:48.1]} 6. Re1 {[%clk 0:02:47.8]} 6... d6 {[%clk 0:02:48.3]} 7.
a4 {[%clk 0:02:48.3]} 7... Be6 {[%clk 0:02:48.2]} 8. Na3 {[%clk 0:02:40.3]} 8...
a6 {[%clk 0:02:35.3]} 9. c3 {[%clk 0:02:40.1]} 9... Na5 {[%clk 0:02:32.8]} 10.
Bxe6 {[%clk 0:02:39.7]} 10... fxe6 {[%clk 0:02:32.2]} 11. b4 {[%clk 0:02:40.6]}
11... Nc6 {[%clk 0:02:26.4]} 12. h3 {[%clk 0:02:39.4]} 12... d5 {[%clk
0:02:25.7]} 13. exd5 {[%clk 0:02:33.7]} 13... Nxd5 {[%clk 0:02:18.8]} 14. Nxe5
{[%clk 0:02:24.8]} 14... Nxe5 {[%clk 0:02:08]} 15. Rxe5 {[%clk 0:02:24.4]} 15...
Nxc3 {[%clk 0:02:04]} 16. Qb3 {[%clk 0:02:18]} 16... Qd4 {[%clk 0:01:56.8]} 17.
Qxe6+ {[%clk 0:02:14.8]} 17... Kh8 {[%clk 0:01:55.8]} 18. Be3 {[%clk 0:02:13.2]}
18... Ne2+ {[%clk 0:01:50.8]} 19. Kh2 {[%clk 0:02:12.8]} 19... Qxa1 {[%clk
0:01:46.9]} 20. Qxe7 {[%clk 0:02:00.5]} 20... Qg1# {[%clk 0:01:45.1]} 0-1

[Event "Late-Titled-Tuesday-Blitz-November-28-2023"]
[Site "Chess.com"]
[Date "2023.11.28"]
[Round "6"]
[White "e4evr"]
[Black "colegiodemadrid"]
[Result "0-1"]
[WhiteElo "2130"]
[BlackElo "2491"]
[TimeControl "180+1"]
[EndTime "15:00:50 PST"]
[Termination "colegiodemadrid won by resignation"]

1. d4 {[%clk 0:03:00]} 1... d5 {[%clk 0:02:59.1]} 2. c4 {[%clk 0:02:58.6]} 2...
e6 {[%clk 0:02:59.7]} 3. Nf3 {[%clk 0:02:57.3]} 3... c6 {[%clk 0:03:00.1]} 4.
Nc3 {[%clk 0:02:56.4]} 4... dxc4 {[%clk 0:03:00.3]} 5. e4 {[%clk 0:02:56.6]}
5... b5 {[%clk 0:03:00.1]} 6. Bf4 {[%clk 0:02:55.5]} 6... Bb4 {[%clk 0:02:57.5]}
7. Be2 {[%clk 0:02:54.2]} 7... Nf6 {[%clk 0:02:57.5]} 8. Qc2 {[%clk 0:02:53.1]}
8... a6 {[%clk 0:02:52.8]} 9. O-O {[%clk 0:02:52.2]} 9... Nbd7 {[%clk
0:02:52.1]} 10. Rfd1 {[%clk 0:02:52.5]} 10... Bb7 {[%clk 0:02:49.7]} 11. a3
{[%clk 0:02:41.3]} 11... Be7 {[%clk 0:02:47.6]} 12. a4 {[%clk 0:02:33.5]} 12...
O-O {[%clk 0:02:45.6]} 13. d5 {[%clk 0:02:24.2]} 13... cxd5 {[%clk 0:02:43.1]}
14. exd5 {[%clk 0:02:23.4]} 14... Nxd5 {[%clk 0:02:41.2]} 15. Nxd5 {[%clk
0:02:22.6]} 15... Bxd5 {[%clk 0:02:38.1]} 16. Nd4 {[%clk 0:02:20]} 16... Bc5
{[%clk 0:02:28.8]} 17. axb5 {[%clk 0:02:18.5]} 17... Bxd4 {[%clk 0:02:23.7]} 18.
Rxd4 {[%clk 0:02:18.5]} 18... axb5 {[%clk 0:02:24.3]} 19. Re1 {[%clk 0:02:11.5]}
19... Qb6 {[%clk 0:02:15.6]} 20. Be3 {[%clk 0:02:10.7]} 20... Qb7 {[%clk
0:02:16.1]} 21. Rh4 {[%clk 0:02:09.4]} 21... f5 {[%clk 0:02:11.8]} 22. Bd4
{[%clk 0:02:06.2]} 22... e5 {[%clk 0:02:08.1]} 23. Bg4 {[%clk 0:01:56.8]} 23...
g6 {[%clk 0:02:03.5]} 24. Bxe5 {[%clk 0:01:50.4]} 24... Nxe5 {[%clk 0:02:03.1]}
25. Rxe5 {[%clk 0:01:50.4]} 25... fxg4 {[%clk 0:02:03.4]} 26. Reh5 {[%clk
0:01:49]} 26... Ra1+ {[%clk 0:01:59.7]} 0-1

[Event "Late-Titled-Tuesday-Blitz-November-28-2023"]
[Site "Chess.com"]
[Date "2023.11.28"]
[Round "6"]
[White "Grischuk"]
[Black "Njal28"]
[Result "1/2-1/2"]
[WhiteElo "3084"]
[BlackElo "3008"]
[TimeControl "180+1"]
[EndTime "15:01:10 PST"]
[Termination "Game drawn by agreement"]

1. d4 {[%clk 0:03:00.9]} 1... d5 {[%clk 0:02:59.9]} 2. c4 {[%clk 0:03:00]} 2...
dxc4 {[%clk 0:03:00.8]} 3. e4 {[%clk 0:02:58]} 3... b5 {[%clk 0:03:00.9]} 4. a4
{[%clk 0:02:57.3]} 4... c6 {[%clk 0:03:01.3]} 5. axb5 {[%clk 0:02:52.5]} 5...
cxb5 {[%clk 0:03:02.2]} 6. Nc3 {[%clk 0:02:52.8]} 6... a6 {[%clk 0:03:02.6]} 7.
Nxb5 {[%clk 0:02:52]} 7... axb5 {[%clk 0:03:03.5]} 8. Rxa8 {[%clk 0:02:52.3]}
8... Bb7 {[%clk 0:03:04.4]} 9. Ra2 {[%clk 0:02:49.1]} 9... e6 {[%clk 0:03:04.2]}
10. Ne2 {[%clk 0:02:42.9]} 10... Bxe4 {[%clk 0:03:03.1]} 11. Nc3 {[%clk
0:02:35.3]} 11... Bb4 {[%clk 0:03:02.1]} 12. Be2 {[%clk 0:02:30.2]} 12... Nf6
{[%clk 0:02:52.5]} 13. O-O {[%clk 0:02:29]} 13... Bxc3 {[%clk 0:02:50.5]} 14.
bxc3 {[%clk 0:02:29.9]} 14... O-O {[%clk 0:02:50.6]} 15. Bf3 {[%clk 0:02:14.8]}
15... Qd5 {[%clk 0:02:34.3]} 16. Bxe4 {[%clk 0:02:14.4]} 16... Nxe4 {[%clk
0:02:35.2]} 17. Qf3 {[%clk 0:02:09.7]} 17... Nc6 {[%clk 0:02:29.7]} 18. Re1
{[%clk 0:02:06]} 18... Nf6 {[%clk 0:02:19.8]} 19. Qd1 {[%clk 0:01:16.1]} 19...
b4 {[%clk 0:02:13.8]} 20. cxb4 {[%clk 0:01:16]} 20... Nxb4 {[%clk 0:02:10.2]}
21. Ra3 {[%clk 0:01:13.6]} 21... Nd3 {[%clk 0:02:07]} 22. Rxd3 {[%clk
0:01:13.7]} 22... cxd3 {[%clk 0:02:07.6]} 23. Qxd3 {[%clk 0:01:14.5]} 1/2-1/2

[Event "Late-Titled-Tuesday-Blitz-November-28-2023"]
[Site "Chess.com"]
[Date "2023.11.28"]
[Round "6"]
[White "ThePeacefulPanda"]
[Black "jefferyx"]
[Result "0-1"]
[WhiteElo "2565"]
[BlackElo "2985"]
[TimeControl "180+1"]
[EndTime "15:01:27 PST"]
[Termination "jefferyx won by checkmate"]

1. Nf3 {[%clk 0:03:00.9]} 1... c5 {[%clk 0:02:59.1]} 2. d4 {[%clk 0:03:01.5]}
2... cxd4 {[%clk 0:02:58.8]} 3. Nxd4 {[%clk 0:03:01.3]} 3... e5 {[%clk
0:02:57.8]} 4. Nf3 {[%clk 0:03:01.8]} 4... Nf6 {[%clk 0:02:51.2]} 5. e3 {[%clk
0:03:00.4]} 5... Nc6 {[%clk 0:02:49.4]} 6. Be2 {[%clk 0:03:01]} 6... d5 {[%clk
0:02:46.9]} 7. O-O {[%clk 0:03:01.5]} 7... Be6 {[%clk 0:02:42.2]} 8. Nbd2 {[%clk
0:03:00]} 8... Be7 {[%clk 0:02:36.4]} 9. c4 {[%clk 0:03:00.1]} 9... d4 {[%clk
0:02:36.2]} 10. exd4 {[%clk 0:02:59.8]} 10... exd4 {[%clk 0:02:35.8]} 11. Bd3
{[%clk 0:02:58.8]} 11... Nd7 {[%clk 0:02:30]} 12. Re1 {[%clk 0:02:58.7]} 12...
Nc5 {[%clk 0:02:29.4]} 13. Bb1 {[%clk 0:02:53]} 13... O-O {[%clk 0:02:25.4]} 14.
Ne4 {[%clk 0:02:51.9]} 14... Qb6 {[%clk 0:01:57.2]} 15. Nxc5 {[%clk 0:02:51.5]}
15... Qxc5 {[%clk 0:01:56.4]} 16. Bd3 {[%clk 0:02:38]} 16... Bxc4 {[%clk
0:01:49.1]} 17. Bxc4 {[%clk 0:02:29.1]} 17... Qxc4 {[%clk 0:01:49.4]} 18. Nxd4
{[%clk 0:02:28.8]} 18... Rfd8 {[%clk 0:01:37.7]} 19. Nxc6 {[%clk 0:02:07.9]}
19... Rxd1 {[%clk 0:01:38.6]} 20. Nxe7+ {[%clk 0:02:08.5]} 20... Kf8 {[%clk
0:01:39.1]} 21. Rxd1 {[%clk 0:02:06.8]} 21... Kxe7 {[%clk 0:01:40]} 22. Bg5+
{[%clk 0:02:04.2]} 22... f6 {[%clk 0:01:39.8]} 23. Rac1 {[%clk 0:02:04.4]} 23...
Qxa2 {[%clk 0:01:34.2]} 24. Rc7+ {[%clk 0:02:03.6]} 24... Kf8 {[%clk 0:01:33.6]}
25. Be3 {[%clk 0:02:01.1]} 25... Qa4 {[%clk 0:01:25.1]} 26. Rdd7 {[%clk
0:01:59.4]} 26... Ke8 {[%clk 0:01:14]} 27. Rxg7 {[%clk 0:01:55.4]} 27... Qd1#
{[%clk 0:01:09.9]} 0-1

[Event "Late-Titled-Tuesday-Blitz-November-28-2023"]
[Site "Chess.com"]
[Date "2023.11.28"]
[Round "6"]
[White "FairChess_on_YouTube"]
[Black "German_Bazeev"]
[Result "1-0"]
[WhiteElo "3081"]
[BlackElo "2810"]
[TimeControl "180+1"]
[EndTime "15:01:31 PST"]
[Termination "FairChess_on_YouTube won by resignation"]

1. d4 {[%clk 0:03:00.9]} 1... Nf6 {[%clk 0:02:57.3]} 2. c4 {[%clk 0:03:00.8]}
2... c6 {[%clk 0:02:57.1]} 3. Bf4 {[%clk 0:02:59.2]} 3... g6 {[%clk 0:02:51.8]}
4. Nc3 {[%clk 0:02:58.5]} 4... Bg7 {[%clk 0:02:52]} 5. Nf3 {[%clk 0:02:56.8]}
5... O-O {[%clk 0:02:49.8]} 6. h3 {[%clk 0:02:56.2]} 6... d6 {[%clk 0:02:48.8]}
7. e3 {[%clk 0:02:55.6]} 7... a6 {[%clk 0:02:48.5]} 8. Be2 {[%clk 0:02:52.5]}
8... b5 {[%clk 0:02:46.5]} 9. O-O {[%clk 0:02:52.1]} 9... Nbd7 {[%clk 0:02:40]}
10. Bh2 {[%clk 0:02:44.4]} 10... b4 {[%clk 0:02:30.3]} 11. Na4 {[%clk
0:02:42.9]} 11... a5 {[%clk 0:02:28.8]} 12. c5 {[%clk 0:02:32.3]} 12... dxc5
{[%clk 0:01:41.5]} 13. dxc5 {[%clk 0:02:33.2]} 13... Ba6 {[%clk 0:01:40.7]} 14.
Bxa6 {[%clk 0:02:27.1]} 14... Rxa6 {[%clk 0:01:41.6]} 15. Qe2 {[%clk 0:02:26.9]}
15... Qc8 {[%clk 0:01:35.2]} 16. Rfd1 {[%clk 0:02:26]} 16... Qb7 {[%clk
0:01:26.7]} 17. Rac1 {[%clk 0:02:25.9]} 17... Re8 {[%clk 0:00:59.8]} 18. Qc4
{[%clk 0:02:21.5]} 18... e5 {[%clk 0:00:45.1]} 19. Ng5 {[%clk 0:02:17.6]} 19...
Nf8 {[%clk 0:00:41.1]} 20. Nxf7 {[%clk 0:02:14.1]} 1-0

[Event "Late-Titled-Tuesday-Blitz-November-28-2023"]
[Site "Chess.com"]
[Date "2023.11.28"]
[Round "6"]
[White "zajka-molotok"]
[Black "Sacbutt"]
[Result "1-0"]
[WhiteElo "2524"]
[BlackElo "2350"]
[TimeControl "180+1"]
[EndTime "15:01:36 PST"]
[Termination "zajka-molotok won by resignation"]

1. g3 {[%clk 0:02:59.9]} 1... g6 {[%clk 0:02:56.8]} 2. Bg2 {[%clk 0:02:57.5]}
2... Bg7 {[%clk 0:02:57.3]} 3. e4 {[%clk 0:02:57.7]} 3... c5 {[%clk 0:02:54.7]}
4. c3 {[%clk 0:02:55.6]} 4... Nc6 {[%clk 0:02:53]} 5. Ne2 {[%clk 0:02:53.9]}
5... e5 {[%clk 0:02:53.1]} 6. O-O {[%clk 0:02:52.9]} 6... Nge7 {[%clk
0:02:52.3]} 7. d3 {[%clk 0:02:52.1]} 7... O-O {[%clk 0:02:51.4]} 8. Be3 {[%clk
0:02:51.1]} 8... d6 {[%clk 0:02:51]} 9. Nd2 {[%clk 0:02:48.5]} 9... Rb8 {[%clk
0:02:49.3]} 10. f4 {[%clk 0:02:46.5]} 10... b5 {[%clk 0:02:44.7]} 11. f5 {[%clk
0:02:32.4]} 11... gxf5 {[%clk 0:02:15.1]} 12. exf5 {[%clk 0:02:33.3]} 12... Nxf5
{[%clk 0:02:14.2]} 13. Rxf5 {[%clk 0:02:31.4]} 13... Bxf5 {[%clk 0:02:15.1]} 14.
Bxc6 {[%clk 0:02:31.3]} 14... Bxd3 {[%clk 0:02:15.7]} 15. Be4 {[%clk 0:02:25.1]}
15... Bxe2 {[%clk 0:02:03.2]} 16. Qxe2 {[%clk 0:02:23.5]} 16... d5 {[%clk
0:02:00.2]} 17. Bf5 {[%clk 0:02:21.9]} 17... d4 {[%clk 0:01:57.6]} 18. Qh5
{[%clk 0:02:18.1]} 18... h6 {[%clk 0:01:46.8]} 19. Bxh6 {[%clk 0:02:16.2]} 19...
Qf6 {[%clk 0:01:35.7]} 20. Bxg7 {[%clk 0:02:07.6]} 20... Qxg7 {[%clk 0:01:34]}
21. Ne4 {[%clk 0:02:04.1]} 21... f6 {[%clk 0:01:25.4]} 22. Rf1 {[%clk
0:01:54.8]} 22... c4 {[%clk 0:01:08.8]} 23. Be6+ {[%clk 0:01:46.1]} 1-0